bitfinex-derivatives/quotes_BTCF0:USTF0_20260113
["timestamp","ask_amount","ask_price","bid_price","bid_amount"]
[1768322777130,0.14237832,93700.0,93684.0,0.09616]
[1768322777325,0.09174321,93706.0,93684.0,0.09616]
[1768322777628,0.18320644,93706.0,93684.0,0.09616]
[1768322777929,0.18320644,93697.0,93671.0,0.1866969]
[1768322778232,0.09146323,93693.0,93671.0,0.09508724]
[1768322778431,0.09146323,93693.0,93671.0,0.1866969]
[1768322778834,0.09174321,93694.0,93672.0,0.09160966]
[1768322779035,0.09146323,93697.0,93674.0,0.1866969]
[1768322779730,0.010679,93696.0,93674.0,0.1866969]
[1768322780030,0.0023343,93733.0,93701.0,0.010678]
[1768322780222,0.08777475,93732.0,93703.0,0.00396846]
[1768322780526,0.01430475,93732.0,93705.0,0.1774]
[1768322780828,0.09146323,93729.0,93705.0,0.2374]
[1768322781032,0.09146323,93729.0,93705.0,0.1774]
[1768322781530,0.09146323,93728.0,93705.0,0.1774]
[1768322781719,0.14237832,93720.0,93706.0,0.1774]
[1768322781919,0.09146323,93726.0,93706.0,0.1774]
[1768322782333,0.09174321,93715.0,93686.0,0.09160966]
[1768322782532,0.0023343,93733.0,93686.0,0.09160966]
[1768322782533,0.09174321,93709.0,93686.0,0.09160966]
[1768322782829,0.09616,93714.0,93688.0,0.07635755]
[1768322783029,0.09174321,93713.0,93689.0,0.09160966]
[1768322786235,0.09174321,93713.0,93683.0,0.09616]
[1768322786236,0.14237832,93700.0,93683.0,0.09616]
[1768322786429,0.14237832,93700.0,93680.0,0.10228966]
[1768322786739,0.09616,93703.0,93680.0,0.09160966]
[1768322787635,0.18790321,93703.0,93680.0,0.09160966]
[1768322789237,0.14237832,93690.0,93672.0,0.09160966]
[1768322789538,0.09174321,93696.0,93672.0,0.15229066]
[1768322789740,0.09174321,93696.0,93673.0,0.09160966]
[1768322789931,0.09174321,93696.0,93673.0,0.15160966]
[1768322790332,0.09174321,93696.0,93674.0,0.09160966]
[1768322790941,0.18762323,93703.0,93669.0,0.09616]
[1768322790942,0.09174321,93688.0,93669.0,0.09616]
[1768322791247,0.09174321,93686.0,93661.0,0.09612]
[1768322791539,0.09174321,93686.0,93665.0,0.09160966]
[1768322792835,0.09174321,93686.0,93661.0,0.106803]
[1768322793143,0.09174321,93686.0,93663.0,0.010682]
[1768322793440,0.09174321,93672.0,93653.0,0.000125]
[1768322795038,0.09184534,93669.0,93653.0,0.000125]
[1768322795238,0.09184534,93669.0,93653.0,0.010809]
[1768322795438,0.09616,93673.0,93653.0,0.010809]
[1768322796538,0.09616,93673.0,93655.0,0.010683]
[1768322796739,0.09616,93674.0,93656.0,0.09753663]
[1768322796941,0.09616,93674.0,93656.0,0.10821963]
[1768322797244,0.09616,93674.0,93653.0,0.010809]
[1768322797245,0.18800534,93674.0,93653.0,0.010809]
[1768322797538,0.18800534,93674.0,93653.0,0.000125]
[1768322797843,0.10252634,93673.0,93653.0,0.000125]
[1768322798241,0.09184534,93673.0,93653.0,0.000125]
[1768322799644,0.09184534,93670.0,93653.0,0.000125]
[1768322801150,0.09184534,93670.0,93653.0,0.010809]
[1768322802044,0.09184534,93677.0,93662.0,0.010683]
[1768322802346,0.09184534,93684.0,93663.0,0.09753663]
[1768322802546,0.010681,93680.0,93663.0,0.09753663]
[1768322802948,0.010681,93675.0,93657.0,0.09753663]
[1768322803447,0.09184534,93680.0,93657.0,0.09769674]
[1768322803645,0.09184534,93687.0,93659.0,0.09753663]
[1768322803851,0.09184534,93687.0,93662.0,0.17875438]
[1768322804052,0.09616,93686.0,93666.0,0.09753663]
[1768322804454,0.09184534,93685.0,93666.0,0.09753663]
[1768322804751,0.10252534,93683.0,93659.0,0.09753663]
[1768322804949,0.01068,93681.0,93659.0,0.14753663]
[1768322805139,0.010681,93678.0,93659.0,0.14753663]
[1768322805344,0.09184534,93681.0,93659.0,0.14753663]
[1768322805657,0.09184534,93675.0,93657.0,0.00016011]
[1768322805842,0.09184534,93675.0,93657.0,0.06016011]
[1768322806043,0.09184534,93675.0,93657.0,0.00016011]
[1768322806845,0.19746832,93669.0,93657.0,0.00016011]
[1768322807050,0.09184534,93667.0,93657.0,0.00016011]
[1768322807246,0.09184534,93667.0,93653.0,0.000125]
[1768322808153,0.09184534,93666.0,93653.0,0.000125]
[1768322808353,0.18678632,93665.0,93653.0,0.000125]
[1768322808656,0.09184534,93664.0,93653.0,0.000125]
[1768322813163,0.00016011,93669.0,93653.0,0.000125]
[1768322813857,0.00016011,93669.0,93656.0,0.010683]
[1768322814062,0.09184534,93676.0,93656.0,0.09753663]
[1768322814560,0.09184534,93676.0,93657.0,0.010683]
[1768322814954,0.09184534,93676.0,93659.0,0.010683]
[1768322815660,0.09184534,93675.0,93656.0,0.010683]
[1768322815867,0.09184534,93675.0,93653.0,0.09766163]
[1768322816257,0.09184534,93675.0,93655.0,0.010683]
[1768322816556,0.09184534,93675.0,93657.0,0.010683]
[1768322816862,0.09184534,93687.0,93669.0,0.010682]
[1768322817056,0.10684,93686.0,93666.0,0.09753663]
[1768322817250,0.09184534,93683.0,93660.0,0.17674398]
[1768322817450,0.18678632,93679.0,93660.0,0.05]
[1768322817656,0.09184534,93678.0,93661.0,0.010683]
[1768322818759,0.09184534,93678.0,93660.0,0.00016011]
[1768322818958,0.09184534,93678.0,93660.0,0.06016011]
[1768322821364,0.10252634,93678.0,93660.0,0.06016011]
[1768322821765,0.09184534,93678.0,93660.0,0.06016011]
[1768322822862,0.18678632,93677.0,93660.0,0.00016011]
[1768322823177,0.18678632,93675.0,93660.0,0.00016011]
[1768322823471,0.09184534,93674.0,93660.0,0.00016011]
[1768322823675,0.18678632,93674.0,93660.0,0.00016011]
[1768322823974,0.09184534,93671.0,93653.0,0.096285]
[1768322824164,0.09184534,93671.0,93653.0,0.156285]
[1768322824867,0.00016011,93676.0,93655.0,0.17325385]
[1768322825174,0.00016011,93676.0,93658.0,0.09486931]
[1768322825358,0.09600912,93676.0,93658.0,0.06]
[1768322825557,0.09584901,93673.0,93653.0,0.106969]
[1768322825756,0.09584901,93672.0,93655.0,0.010683]
[1768322825957,0.09584901,93672.0,93655.0,0.070683]
[1768322827074,0.09584901,93672.0,93655.0,0.010683]
[1768322827264,0.09584901,93671.0,93653.0,0.096285]
[1768322827466,0.09584901,93650.0,93630.0,0.09616]
[1768322827670,0.09584901,93650.0,93634.0,0.010686]
[1768322827862,0.09584901,93650.0,93636.0,0.010686]
[1768322828172,0.09584901,93657.0,93633.0,0.09486931]
[1768322828372,0.00010488,93656.0,93640.0,0.09486931]
[1768322828670,0.00010488,93656.0,93641.0,0.09486931]
[1768322828870,0.09584901,93666.0,93641.0,0.15486931]
[1768322829068,0.09584901,93666.0,93646.0,0.010684]
[1768322829270,0.18807207,93666.0,93643.0,0.010685]
[1768322829470,0.09584901,93665.0,93643.0,0.070685]
[1768322829670,0.10653201,93663.0,93641.0,0.09486931]
[1768322829871,0.10653201,93663.0,93641.0,0.14486931]
[1768322830071,0.10653201,93663.0,93641.0,0.05]
[1768322830869,0.09616,93668.0,93641.0,0.05]
[1768322830870,0.09584901,93660.0,93641.0,0.05]
[1768322831069,0.09584901,93659.0,93641.0,0.05]
[1768322831365,0.09584901,93638.0,93618.0,0.106848]
[1768322831563,0.09584901,93638.0,93618.0,0.14616]
[1768322831982,0.09584901,93637.0,93618.0,0.14616]
[1768322832175,0.09584901,93636.0,93618.0,0.156848]
[1768322833184,0.09584901,93636.0,93619.0,0.010687]
[1768322833479,0.09584901,93636.0,93619.0,0.060687]
[1768322833675,0.09584901,93636.0,93619.0,0.05]
[1768322835067,0.09584901,93633.0,93619.0,0.05]
[1768322835274,0.09584901,93633.0,93618.0,0.09616]
[1768322835472,0.09584901,93633.0,93618.0,0.15616]
[1768322836083,0.09616,93644.0,93613.0,0.00534114]
[1768322836084,0.09678917,93626.0,93615.0,0.09616]
[1768322836373,0.09678917,93625.0,93615.0,0.09616]
[1768322836983,0.09678917,93630.0,93615.0,0.09616]
[1768322837185,0.09678917,93630.0,93616.0,0.010688]
[1768322837883,0.09678917,93630.0,93615.0,0.09616]
[1768322838779,0.09678917,93637.0,93616.0,0.09173185]
[1768322839176,0.09812235,93636.0,93615.0,0.106847]
[1768322839383,0.09678917,93637.0,93619.0,0.010686]
[1768322839586,0.09678917,93644.0,93620.0,0.09173185]
[1768322839780,0.09678917,93644.0,93622.0,0.010686]
[1768322839975,0.09678917,93642.0,93622.0,0.05]
[1768322840281,0.09678917,93641.0,93622.0,0.05]
[1768322840683,0.09678917,93641.0,93623.0,0.010686]
[1768322841076,0.09678917,93641.0,93620.0,0.010686]
[1768322841277,0.09678917,93641.0,93620.0,0.060686]
[1768322841585,0.09678917,93641.0,93622.0,0.010686]
[1768322841789,0.09678917,93641.0,93622.0,0.070686]
[1768322841981,0.09678917,93641.0,93622.0,0.15173185]
[1768322842184,0.09678917,93648.0,93627.0,0.09173185]
[1768322842382,0.09812235,93654.0,93633.0,0.010685]
[1768322842581,0.10747117,93656.0,93635.0,0.010685]
[1768322842782,0.010683,93652.0,93635.0,0.06]
[1768322842985,0.10747217,93650.0,93635.0,0.06]
[1768322843184,0.19491152,93649.0,93635.0,0.06]
[1768322843386,0.09678917,93646.0,93628.0,0.0962]
[1768322843587,0.09678917,93646.0,93628.0,0.1562]
[1768322843888,0.09678917,93644.0,93628.0,0.06]
[1768322844190,0.09678917,93642.0,93628.0,0.06]
[1768322844693,0.10747317,93642.0,93628.0,0.06]
[1768322845090,0.09678917,93639.0,93627.0,0.0962]
[1768322845887,0.09812235,93645.0,93627.0,0.0962]
[1768322846195,0.010684,93644.0,93627.0,0.1462]
[1768322846400,0.09678917,93646.0,93627.0,0.1462]
[1768322846889,0.09678917,93644.0,93627.0,0.1462]
[1768322847090,0.09678917,93644.0,93627.0,0.0962]
[1768322848302,0.09678917,93643.0,93627.0,0.0962]
[1768322848489,0.09678917,93639.0,93621.0,0.0962]
[1768322849895,0.09678917,93646.0,93621.0,0.18793185]
[1768322850098,0.09678917,93646.0,93622.0,0.10241785]
[1768322851001,0.09678917,93646.0,93626.0,0.010686]
[1768322851292,0.09678917,93659.0,93637.0,0.09173185]
[1768322851493,0.15675941,93666.0,93641.0,0.09173185]
[1768322851683,0.09812235,93695.0,93665.0,0.09693468]
[1768322851880,0.10880035,93694.0,93666.0,0.0962]
[1768322852087,0.10880035,93694.0,93666.0,0.1562]
[1768322852296,0.10880035,93691.0,93666.0,0.1562]
[1768322852892,0.010679,93687.0,93666.0,0.1562]
[1768322853293,0.010679,93687.0,93666.0,0.0962]
[1768322853598,0.010679,93687.0,93666.0,0.1562]
[1768322853793,0.09678917,93690.0,93666.0,0.1562]
[1768322853996,0.010678,93689.0,93666.0,0.1562]
[1768322854296,0.10746717,93689.0,93666.0,0.1562]
[1768322854481,0.09678917,93689.0,93665.0,0.09693468]
[1768322854681,0.0918816,93678.0,93651.0,0.0962]
[1768322854996,0.0918816,93678.0,93655.0,0.09012789]
[1768322855192,0.09872413,93693.0,93669.0,0.09012789]
[1768322855787,0.09872413,93693.0,93669.0,0.14012789]
[1768322856397,0.0918816,93702.0,93679.0,0.09012789]
[1768322856595,0.0918816,93702.0,93679.0,0.34340793]
[1768322856799,0.0918816,93701.0,93679.0,0.1562]
[1768322857003,0.0918816,93700.0,93679.0,0.0962]
[1768322857188,0.19060573,93700.0,93679.0,0.1562]
[1768322857387,0.0918816,93699.0,93679.0,0.1562]
[1768322857691,0.0918816,93699.0,93679.0,0.0962]
[1768322858889,0.1025586,93698.0,93679.0,0.0962]
[1768322859288,0.0918816,93698.0,93679.0,0.0962]
[1768322859793,0.0918816,93697.0,93679.0,0.0962]
[1768322859996,0.0918816,93696.0,93679.0,0.1562]
[1768322860295,0.19060573,93696.0,93679.0,0.1562]
[1768322860506,0.19060573,93668.0,93637.0,0.09012789]
[1768322860689,0.28676573,93667.0,93640.0,0.09012789]
[1768322860890,0.28676573,93667.0,93641.0,0.09012789]
[1768322861094,0.28676573,93667.0,93642.0,0.09012789]
[1768322861290,0.28676573,93667.0,93643.0,0.09012789]
[1768322861492,0.0918816,93667.0,93647.0,0.010683]
[1768322861699,0.0918816,93667.0,93651.0,0.010683]
[1768322862000,0.09616,93666.0,93644.0,0.10081089]
[1768322862195,0.09616,93666.0,93647.0,0.010683]
[1768322862789,0.09616,93666.0,93644.0,0.09012789]
[1768322862999,0.19060573,93667.0,93646.0,0.010683]
[1768322863496,0.28676573,93667.0,93646.0,0.010683]
[1768322864091,0.28676573,93667.0,93644.0,0.09012789]
[1768322864597,0.28676573,93667.0,93645.0,0.010683]
[1768322864789,0.28676573,93667.0,93644.0,0.09012789]
[1768322865303,0.29744673,93667.0,93644.0,0.09012789]
[1768322865488,0.09616,93667.0,93645.0,0.09708004]
[1768322865694,0.09616,93667.0,93644.0,0.09012789]
[1768322865987,0.09872413,93668.0,93644.0,0.15012789]
[1768322866596,0.09872413,93668.0,93645.0,0.09012789]
[1768322866793,0.09872413,93668.0,93645.0,0.15012789]
[1768322870004,0.19060573,93668.0,93648.0,0.010683]
[1768322870189,0.09872413,93666.0,93645.0,0.10081089]
[1768322870390,0.09872413,93665.0,93645.0,0.06]
[1768322870897,0.09872413,93665.0,93645.0,0.05]
[1768322871102,0.09872413,93665.0,93649.0,0.010683]
[1768322871401,0.09616,93681.0,93660.0,0.10080989]
[1768322871599,0.09616,93680.0,93660.0,0.09012789]
[1768322871903,0.19488413,93679.0,93653.0,0.09012789]
[1768322872093,0.09872413,93677.0,93653.0,0.14012789]
[1768322872293,0.10940413,93677.0,93653.0,0.14012789]
[1768322872801,0.09872413,93677.0,93654.0,0.09012789]
[1768322873102,0.19488413,93677.0,93654.0,0.15012789]
[1768322873405,0.09872413,93674.0,93647.0,0.09012789]
[1768322873603,0.01068,93673.0,93647.0,0.09012789]
[1768322873801,0.01068,93673.0,93647.0,0.15012789]
[1768322874007,0.09872413,93668.0,93647.0,0.15012789]
[1768322874905,0.09872413,93667.0,93647.0,0.06]
[1768322876407,0.09872413,93663.0,93647.0,0.06]
[1768322878803,0.09872413,93663.0,93640.0,0.09012789]
[1768322879004,0.09872413,93663.0,93641.0,0.09012789]
[1768322880314,0.09872413,93653.0,93629.0,0.09616]
[1768322880606,0.09872413,93652.0,93629.0,0.14616]
[1768322880807,0.09872413,93650.0,93629.0,0.14616]
[1768322881007,0.09872413,93648.0,93629.0,0.05]
[1768322881211,0.09872413,93644.0,93629.0,0.05]
[1768322881409,0.09888424,93649.0,93629.0,0.05]
[1768322881611,0.09616,93648.0,93630.0,0.010685]
[1768322881910,0.00016011,93649.0,93636.0,0.010684]
[1768322882117,0.00016011,93649.0,93636.0,0.15012789]
[1768322882305,0.09616,93653.0,93637.0,0.10081189]
[1768322882503,0.38472,93694.0,93637.0,0.10081189]
[1768322882504,0.09872413,93667.0,93640.0,0.09012789]
[1768322882811,0.0918816,93671.0,93646.0,0.09012789]
[1768322883012,0.09616,93670.0,93647.0,0.10081089]
[1768322883212,0.09616,93670.0,93647.0,0.14012789]
[1768322883513,0.24897533,93671.0,93648.0,0.010683]
[1768322883713,0.09616,93670.0,93648.0,0.05]
[1768322883914,0.09616,93669.0,93648.0,0.05]
[1768322884324,0.09616,93669.0,93648.0,0.06]
[1768322884511,0.198,93675.0,93650.0,0.10081089]
[1768322884720,0.09616,93674.0,93652.0,0.09012789]
[1768322884916,0.09616,93674.0,93652.0,0.15012789]
[1768322885215,0.09616,93673.0,93656.0,0.09805012]
[1768322885810,0.09616,93673.0,93655.0,0.00016011]
[1768322886012,0.01068,93672.0,93655.0,0.00016011]
[1768322886315,0.09616,93673.0,93655.0,0.00016011]
[1768322887418,0.05838473,93675.0,93655.0,0.00016011]
[1768322887622,0.09616,93674.0,93655.0,0.06016011]
[1768322889327,0.09616,93674.0,93655.0,0.00016011]
[1768322889621,0.18863957,93674.0,93655.0,0.05016011]
[1768322890413,0.09247957,93674.0,93655.0,0.05016011]
[1768322890613,0.18863957,93674.0,93655.0,0.05016011]
[1768322890919,0.15697948,93679.0,93655.0,0.06084211]
[1768322891226,0.09616,93689.0,93670.0,0.09805012]
[1768322891516,0.09247957,93690.0,93670.0,0.15805012]
[1768322891722,0.09247957,93690.0,93670.0,0.06]
[1768322892314,0.09616,93690.0,93670.0,0.06]
[1768322892514,0.09616,93690.0,93671.0,0.09805012]
[1768322892825,0.09616,93690.0,93671.0,0.15805012]
[1768322893609,0.18863957,93690.0,93671.0,0.05]
[1768322893816,0.10315857,93689.0,93664.0,0.09805012]
[1768322894015,0.09247957,93689.0,93664.0,0.15805012]
[1768322894618,0.09247957,93689.0,93665.0,0.09805012]
[1768322894814,0.09247957,93689.0,93665.0,0.15805012]
[1768322895921,0.09247957,93689.0,93667.0,0.09376548]
[1768322896122,0.09247957,93689.0,93667.0,0.15376548]
[1768322896323,0.09247957,93689.0,93667.0,0.09376548]
[1768322896516,0.1099689,93688.0,93667.0,0.15376548]
[1768322896716,0.010679,93686.0,93667.0,0.15376548]
[1768322898026,0.1099689,93686.0,93661.0,0.09855558]
[1768322898225,0.0992899,93686.0,93662.0,0.09376548]
[1768322898415,0.0992899,93686.0,93662.0,0.14376548]
[1768322899220,0.0992899,93686.0,93663.0,0.09376548]
[1768322899421,0.0992899,93686.0,93664.0,0.09855558]
[1768322899720,0.09616,93689.0,93666.0,0.09376548]
[1768322899925,0.0992899,93688.0,93666.0,0.14376548]
[1768322900120,0.0992899,93687.0,93666.0,0.09376548]
[1768322900328,0.0992899,93690.0,93668.0,0.09376548]
[1768322900620,0.09722238,93706.0,93685.0,0.09376548]
[1768322900819,0.0992899,93703.0,93685.0,0.05]
[1768322901021,0.09616,93702.0,93685.0,0.05]
[1768322901524,0.19651228,93705.0,93685.0,0.05]
[1768322901725,0.09616,93704.0,93685.0,0.05]
[1768322901920,0.19651228,93705.0,93685.0,0.05]
[1768322902125,0.09616,93704.0,93679.0,0.09855558]
[1768322902423,0.09616,93704.0,93683.0,0.09376548]
[1768322902622,0.0992899,93710.0,93683.0,0.09376548]
[1768322902623,0.0992899,93710.0,93686.0,0.09376548]
[1768322902824,0.1954499,93710.0,93687.0,0.09376548]
[1768322903126,0.0992899,93709.0,93687.0,0.09376548]
[1768322903424,0.09616,93710.0,93688.0,0.09376548]
[1768322903629,0.09616,93710.0,93689.0,0.09376548]
[1768322903924,0.09722238,93711.0,93689.0,0.15376548]
[1768322904228,0.010676,93709.0,93689.0,0.09376548]
[1768322905522,0.09722238,93711.0,93689.0,0.15376548]
[1768322905725,0.09616,93714.0,93691.0,0.10444348]
[1768322906025,0.09616,93714.0,93693.0,0.09855558]
[1768322906221,0.09616,93714.0,93693.0,0.15855558]
[1768322906426,0.09616,93714.0,93693.0,0.25232106]
[1768322906818,0.09616,93714.0,93695.0,0.09376548]
[1768322907019,0.09616,93714.0,93695.0,0.15376548]
[1768322908025,0.0992899,93720.0,93696.0,0.09855558]
[1768322908233,0.0992899,93725.0,93700.0,0.09855558]
[1768322908429,0.0992899,93725.0,93701.0,0.09376548]
[1768322908623,0.0992899,93725.0,93701.0,0.15376548]
[1768322908624,0.0992899,93724.0,93701.0,0.15376548]
[1768322909332,0.0992899,93722.0,93701.0,0.09376548]
[1768322909629,0.0992899,93721.0,93701.0,0.09376548]
[1768322910330,0.0992899,93721.0,93696.0,0.09616]
[1768322910527,0.19651228,93717.0,93689.0,0.09855558]
[1768322910727,0.0992899,93708.0,93687.0,0.09616]
[1768322910918,0.0992899,93713.0,93690.0,0.09376548]
[1768322911232,0.09612,93712.0,93690.0,0.15376548]
[1768322911425,0.0992899,93713.0,93690.0,0.15376548]
[1768322911628,0.09722238,93716.0,93692.0,0.09376548]
[1768322911831,0.0992899,93718.0,93695.0,0.09376548]
[1768322912133,0.09722238,93714.0,93688.0,0.09376548]
[1768322912329,0.0992899,93713.0,93689.0,0.09855558]
[1768322912633,0.0992899,93713.0,93690.0,0.09376548]
[1768322912834,0.0992899,93713.0,93690.0,0.14376548]
[1768322913030,0.0992899,93713.0,93691.0,0.09376548]
[1768322913235,0.0992899,93713.0,93691.0,0.15376548]
[1768322913833,0.0992899,93713.0,93691.0,0.14376548]
[1768322915725,0.0992899,93713.0,93691.0,0.09376548]
[1768322915925,0.09565678,93707.0,93687.0,0.09616]
[1768322916132,0.09565678,93707.0,93687.0,0.14616]
[1768322917234,0.09825976,93691.0,93671.0,0.09612]
[1768322917426,0.09565678,93689.0,93671.0,0.05]
[1768322917832,0.09565678,93688.0,93671.0,0.05]
[1768322920727,0.09612,93691.0,93673.0,0.09706114]
[1768322920933,0.09612,93691.0,93673.0,0.15706114]
[1768322921630,0.09825976,93716.0,93694.0,0.010678]
[1768322921842,0.09825976,93716.0,93697.0,0.010678]
[1768322922034,0.09825976,93716.0,93699.0,0.010677]
[1768322922234,0.09825976,93716.0,93699.0,0.070677]
[1768322922435,0.09825976,93716.0,93699.0,0.06]
[1768322928045,0.09825976,93716.0,93700.0,0.09612]
[1768322928340,0.09825976,93716.0,93700.0,0.15612]
[1768322930339,0.09825976,93715.0,93700.0,0.06]
[1768322930643,0.09825976,93712.0,93701.0,0.09612]
[1768322930840,0.09825976,93712.0,93702.0,0.09612]
[1768322931043,0.09825976,93712.0,93687.0,0.39436]
[1768322931044,0.09825976,93711.0,93700.0,0.09612]
[1768322931839,0.09825976,93711.0,93687.0,0.09579661]
[1768322932043,0.19391654,93711.0,93688.0,0.09579661]
[1768322932236,0.19391654,93710.0,93689.0,0.09612]
[1768322932435,0.09825976,93709.0,93690.0,0.09612]
[1768322932630,0.09825976,93709.0,93690.0,0.15612]
[1768322934537,0.09825976,93708.0,93690.0,0.09612]
[1768322934742,0.09825976,93708.0,93690.0,0.15612]
[1768322935049,0.19391654,93707.0,93690.0,0.15612]
[1768322935236,0.09612,93719.0,93696.0,0.09579661]
[1768322935437,0.09612,93719.0,93696.0,0.15579661]
[1768322935438,0.10893476,93717.0,93696.0,0.15579661]
[1768322935742,0.19391654,93716.0,93697.0,0.09612]
[1768322935944,0.09825976,93715.0,93697.0,0.15612]
[1768322936447,0.09825976,93714.0,93697.0,0.15612]
[1768322936641,0.29003654,93719.0,93697.0,0.15612]
[1768322936834,0.09825976,93715.0,93697.0,0.15612]
[1768322937543,0.09612,93719.0,93697.0,0.15612]
[1768322937745,0.19391654,93718.0,93697.0,0.15612]
[1768322937945,0.09825976,93718.0,93697.0,0.25191661]
[1768322938442,0.09825976,93718.0,93697.0,0.19191661]
[1768322938650,0.09825976,93718.0,93697.0,0.25191661]
[1768322939846,0.19391654,93718.0,93697.0,0.25191661]
[1768322940048,0.19391654,93718.0,93697.0,0.09579661]
[1768322940247,0.19391654,93717.0,93698.0,0.09612]
[1768322941048,0.19391654,93714.0,93698.0,0.09612]
[1768322941438,0.19391654,93720.0,93698.0,0.14612]
[1768322941643,0.19391654,93718.0,93698.0,0.14612]
[1768322942239,0.25366121,93725.0,93699.0,0.09579661]
[1768322942540,0.19391654,93721.0,93700.0,0.09706114]
[1768322942739,0.19391654,93719.0,93698.0,0.09612]
[1768322942945,0.19391654,93719.0,93698.0,0.15612]
[1768322943349,0.09825976,93714.0,93698.0,0.15612]
[1768322943548,0.09825976,93713.0,93698.0,0.15612]
[1768322945149,0.18575636,93719.0,93698.0,0.15612]
[1768322946042,0.18575636,93732.0,93707.0,0.09145011]
[1768322946240,0.09322212,93729.0,93708.0,0.09145011]
[1768322946442,0.09322212,93727.0,93709.0,0.09612]
[1768322946950,0.09322212,93724.0,93709.0,0.09612]
[1768322947145,0.18575636,93730.0,93709.0,0.09612]
[1768322947350,0.18575636,93730.0,93709.0,0.15612]
[1768322947545,0.09253424,93736.0,93712.0,0.18552116]
[1768322947741,0.09322212,93744.0,93715.0,0.18552116]
[1768322947941,0.09253424,93743.0,93715.0,0.06]
[1768322948142,0.18575636,93739.0,93713.0,0.09145011]
[1768322948344,0.18575636,93739.0,93714.0,0.09612]
[1768322948541,0.18575636,93739.0,93714.0,0.24757011]
[1768322948849,0.18575636,93739.0,93715.0,0.09145011]
[1768322949050,0.18575636,93739.0,93715.0,0.15145011]
[1768322949458,0.18575636,93739.0,93716.0,0.09145011]
[1768322949650,0.09322212,93739.0,93717.0,0.19619616]
[1768322949847,0.24523602,93745.0,93718.0,0.18552116]
[1768322950047,0.24523602,93745.0,93718.0,0.24552116]
[1768322950554,0.09322212,93740.0,93719.0,0.09612]
[1768322950742,0.09322212,93740.0,93719.0,0.15612]
[1768322951343,0.09322212,93735.0,93719.0,0.06]
[1768322951554,0.09322212,93735.0,93720.0,0.09612]
[1768322951860,0.09322212,93735.0,93720.0,0.15612]
[1768322952349,0.09322212,93735.0,93720.0,0.06]
[1768322952554,0.18575636,93731.0,93720.0,0.11612]
[1768322953154,0.09322212,93729.0,93720.0,0.02]
[1768322953360,0.09322212,93721.0,93707.0,0.09612]
[1768322953656,0.09322212,93721.0,93707.0,0.15612]
[1768322953657,0.09322212,93720.0,93707.0,0.15612]
[1768322954155,0.18575636,93726.0,93707.0,0.15612]
[1768322955157,0.0984543,93733.0,93711.0,0.09145011]
[1768322955357,0.09322212,93732.0,93711.0,0.06]
[1768322955853,0.09999107,93730.0,93711.0,0.06]
[1768322957145,0.09999107,93729.0,93711.0,0.06]
[1768322957451,0.0023343,93733.0,93711.0,0.06]
[1768322957452,0.09999107,93727.0,93711.0,0.06]
[1768322958145,0.19121469,93727.0,93711.0,0.06]
[1768322961356,0.09999107,93726.0,93711.0,0.06]
[1768322962258,0.15878763,93730.0,93711.0,0.06]
[1768322962654,0.09999107,93730.0,93711.0,0.06]
[1768322962960,0.19121469,93730.0,93711.0,0.06]
[1768322963948,0.0023343,93733.0,93714.0,0.18988055]
[1768322964146,0.0023343,93733.0,93715.0,0.18988055]
[1768322964351,0.0023343,93733.0,93717.0,0.09617252]
[1768322964552,0.0023343,93733.0,93717.0,0.15617252]
[1768322966252,0.0023343,93733.0,93717.0,0.06]
[1768322967462,0.0023343,93733.0,93717.0,0.070675]
[1768322967656,0.0023343,93733.0,93717.0,0.16684752]
[1768322967856,0.0023343,93733.0,93717.0,0.15617252]
[1768322968264,0.0023343,93733.0,93718.0,0.010675]
[1768322968457,0.0023343,93733.0,93718.0,0.15684752]
[1768322968658,0.0023343,93733.0,93718.0,0.14617252]
[1768322968854,0.0023343,93733.0,93718.0,0.05]
[1768322973669,0.19121469,93729.0,93718.0,0.04]
[1768322974264,0.0023343,93733.0,93713.0,0.18988055]
[1768322974467,0.0023343,93733.0,93715.0,0.18988055]
[1768322974658,0.0023343,93733.0,93717.0,0.09617252]
[1768322974859,0.0023343,93733.0,93717.0,0.14617252]
[1768322975361,0.0023343,93733.0,93717.0,0.05]
[1768322976367,0.0023343,93733.0,93718.0,0.19831958]
[1768322976567,0.0023343,93733.0,93720.0,0.19831958]
[1768322976763,0.0023343,93733.0,93721.0,0.19831958]
[1768322977065,0.0023343,93733.0,93722.0,0.0991789]
[1768322977268,0.0023343,93733.0,93722.0,0.1591789]
[1768322978171,0.0023343,93733.0,93722.0,0.06]
[1768322978978,0.09256186,93745.0,93724.0,0.0991789]
[1768322979276,0.09612,93744.0,93725.0,0.0991789]
[1768322979570,0.09612,93744.0,93725.0,0.1591789]
[1768322979772,0.28613239,93744.0,93725.0,0.06]
[1768322980066,0.19001239,93743.0,93725.0,0.06]
[1768322980272,0.19001239,93741.0,93725.0,0.06]
[1768322980462,0.09745053,93739.0,93725.0,0.06]
[1768322980662,0.09256186,93740.0,93725.0,0.06]
[1768322981870,0.19001239,93739.0,93725.0,0.06]
[1768322982267,0.09256186,93737.0,93713.0,0.0991789]
[1768322982470,0.19001239,93735.0,93717.0,0.010675]
[1768322982670,0.19001239,93735.0,93717.0,0.05]
[1768322982870,0.09256186,93735.0,93717.0,0.05]
[1768322985172,0.05916862,93745.0,93727.0,0.0991789]
[1768322985375,0.09612,93744.0,93727.0,0.1491789]
[1768322985672,0.19001239,93742.0,93721.0,0.0991789]
[1768322985872,0.09256186,93739.0,93721.0,0.03]
[1768322986077,0.09256186,93737.0,93721.0,0.03]
[1768322986377,0.09256186,93735.0,93721.0,0.05]
[1768322986569,0.09745053,93734.0,93721.0,0.05]
[1768322987468,0.19001239,93741.0,93721.0,0.05]
[1768322987674,0.09745053,93739.0,93721.0,0.05]
[1768322987875,0.09256186,93738.0,93721.0,0.05]
[1768322988076,0.09745053,93737.0,93721.0,0.05]
[1768322988275,0.19001239,93737.0,93721.0,0.05]
[1768322989182,0.09256186,93736.0,93721.0,0.05]
[1768322989683,0.19001239,93736.0,93721.0,0.05]
[1768322990784,0.19001239,93735.0,93721.0,0.05]
[1768322991485,0.19001239,93733.0,93721.0,0.05]
[1768322992076,0.09256186,93732.0,93721.0,0.05]
[1768322992476,0.19001239,93732.0,93713.0,0.00533544]
[1768322992680,0.09256186,93719.0,93713.0,0.03747089]
[1768322992881,0.09256186,93719.0,93701.0,0.106797]
[1768322993085,0.19001239,93725.0,93703.0,0.0991789]
[1768322993386,0.09745053,93730.0,93708.0,0.0991789]